Cogmind - Beta 13 @@@ ROGUE MODE // 2024.03.14 @ 21:21:04 Player: NitroKuite Result: Destroyed by G-47 Trooper with Particle Gun Performance ------------- Evolutions (2) 1000 Regions Visited (4) 800 Robots Destroyed (51) 255 Value Destroyed (1341) 1341 Prototype IDs (1) 20 Alien Tech Used (0) 0 Bonus (0) 0 TOTAL SCORE: 3416 Bonus ------- None Cogmind --------- Core Integrity 0/550 Matter 463/500 Energy 97/100 System Corruption 0% Temperature Cool (36) Movement Core (100) Ox1 Location -8/Materials Parts ------- > --- POWER (1) -------- (None) > --- PROPULSION (2) --- (None) > --- UTILITY (2) ------ High-capacity Matter Pod > --- WEAPON (6) ------- (None) > --- INVENTORY (5) ---- Cryofiber Web Large Matter Pod (0) Peak State ------------ > --- POWER ------------ Nuclear Core > --- PROPULSION ------- VTOL Module > --- UTILITY ---------- High-capacity Matter Pod High-capacity Matter Pod > --- WEAPON ----------- Beam Rifle Assault Cannon Grenade Launcher Rocket Launcher Rocket Launcher Rocket Launcher > --- INVENTORY -------- Cryofiber Web Large Matter Pod [Rating: 19] Favorites ----------- Power Nuclear Core Engine Light Ion Engine Power Core Nuclear Core Propulsion Aluminum Leg Leg Aluminum Leg Flight Unit VTOL Module Utility High-capacity Matter Pod Device Heat Sink Storage High-capacity Matter Pod Weapon Rocket Launcher Energy Gun Beam Rifle Ballistic Gun Shotgun Ballistic Cannon Assault Cannon Launcher Rocket Launcher Build | -11 -10 -9 -9 -8 ------- Run | Yrd Mat Mat Min Mat Slots Evolved 4 | . . 2 . 2 Power . | . . . . . Propulsion . | . . . . . Utility . | . . . . . Weapon 4 | . . 2 . 2 Parts Attached 29 | 4 12 7 . 6 Power 2 | 1 . 1 . . Engine 1 | 1 . . . . Core 1 | . . 1 . . Reactor . | . . . . . Propulsion 6 | 2 3 . . 1 Treads . | . . . . . Leg 5 | 2 3 . . . Wheel . | . . . . . Hover . | . . . . . Flight 1 | . . . . 1 Utility 5 | . 2 3 . . Device 2 | . 1 1 . . Storage 3 | . 1 2 . . Processor . | . . . . . Hackware . | . . . . . Protection . | . . . . . Artifact . | . . . . . Weapon 16 | 1 7 3 . 5 Energy Gun 6 | 1 4 . . 1 Energy Cannon . | . . . . . Ballistic Gun 4 | . 3 . . 1 Ballistic Cannon 1 | . . . . 1 Launcher 5 | . . 3 . 2 Special Weapon . | . . . . . Impact Weapon . | . . . . . Slashing Weapon . | . . . . . Piercing Weapon . | . . . . . Special Melee Weapon . | . . . . . Unidentified Prototypes 1 | . . . . 1 Parts Lost 18 | . 6 1 . 11 Power 2 | . 1 . . 1 Propulsion 4 | . 2 1 . 1 Utility 2 | . 1 . . 1 Weapon 10 | . 2 . . 8 Highest Loss Streak 8 | . 5 1 . 8 To Critical Strikes . | . . . . . Average Slot Usage (%) 75 | . 68 93 88 68 Engine 2 | . 5 . . . Core 5 | . . 10 11 7 Leg 16 | . 26 20 11 . Flight 2 | . . . . 6 Device 3 | . 6 4 . . Storage 11 | . 3 17 22 17 Energy Gun 11 | . 13 14 11 7 Ballistic Gun 4 | . 11 . . . Ballistic Cannon 1 | . . . . 4 Launcher 15 | . . 25 33 23 Naked Turns 9 | . 9 . . . Heaviest Build 38 | 5 10 29 29 38 Greatest Support 20 | 20 20 20 10 10 Greatest Overweight (x) 9 | 1 2 2 2 9 Average Overweight (x) 1 | . . . 2 4 Largest Inventory Capacity 5 | 5 5 5 5 5 Average Capacity 5 | 5 5 5 5 5 Most Carried 4 | 4 3 3 3 3 Average Carried 1 | 2 1 1 3 2 Final Capacity 5 | 5 5 5 5 5 Final Carried 3 | 2 1 3 3 2 Class Distribution -------------------- 43% | Mutant 36% | Gunner 14% | Executioner 5% | Scavenger-Mutant Dominant Class ---------------- Mutant | -10/Materials Gunner | -9/Materials Gunner | -9/Mines Executioner | -8/Materials Resources | -11 -10 -9 -9 -8 ----------- Run | Yrd Mat Mat Min Mat Matter Collected 1074 | 235 370 242 . 227 Remotely . | . . . . . Salvage Created 1370 | 47 488 387 . 448 Parts 108 | 4 40 32 . 32 Haulers Intercepted 2 | . . 2 . . Recyclers Shooed . | . . . . . Parts Field Recycled . | . . . . . Retrieved Matter . | . . . . . Parts Self-Destructed . | . . . . . Prevented . | . . . . . Kills | -11 -10 -9 -9 -8 ------- Run | Yrd Mat Mat Min Mat Combat Hostiles Destroyed 28 | 1 12 8 . 7 Guns 13 | 1 12 . . . AOE 15 | . . 8 . 7 Classes Destroyed 13 | 1 4 5 . 3 Worker 4 | . . 1 . 3 Builder 6 | . 1 2 . 3 Tunneler 1 | . . 1 . . Hauler 2 | . . 2 . . Recycler 4 | . . 1 . 3 Operator 1 | . 1 . . . Watcher 5 | . 2 2 . 1 Swarmer 1 | . 1 . . . Grunt 21 | 1 11 7 . 2 Brawler 1 | . . 1 . . Specialist 2 | . . . . 2 Hunter 2 | . . . . 2 Heavy 1 | . . . . 1 Best Kill Streak 13 | 1 5 6 . 13 Combat Bots Only 6 | 1 5 4 . 6 Max Kills in Single Turn 5 | 1 2 3 . 5 Gunslinging . | . . . . . Exploded 3 | . . 2 . 3 Melee . | . . . . . Uniques/NPCs Destroyed . | . . . . . Combat | -11 -10 -9 -9 -8 -------- Run | Yrd Mat Mat Min Mat Hostile Shots Fired 283 | 1 157 8 . 117 Missed 102 | . 61 2 . 39 Damage Taken 2259 | 12 974 64 . 1209 Core 763 | . 201 . . 562 Absorbed by Shields . | . . . . . Core Remaining (%) 73 | 100 19 . 100 . Volleys Fired 65 | 1 36 14 . 14 Largest 6 | 1 2 4 . 6 Hottest 229 | 40 112 175 . 229 Shots Fired 140 | 1 66 48 . 25 Gun 100 | 1 66 22 . 11 Cannon 1 | . . . . 1 Launcher 39 | . . 26 . 13 Special . | . . . . . Kinetic 49 | . 46 . . 3 Thermal 46 | . 19 22 . 5 Explosive 39 | . . 26 . 13 Electromagnetic 6 | 1 1 . . 4 Robot Hit Streak 7 | 1 5 4 . 7 Robot Miss Streak 7 | . 7 4 . 3 Penetration Max . | . . . . . Secondary Targets 2 | . 2 . . . Max Gunslinging Chain 1 | . 1 . . . Shots Hit Robots 75 | 1 38 20 . 16 Core Hits 96 | 1 31 26 . 38 Critical Kills . | . . . . . Critical Parts Destroyed . | . . . . . Critical Strikes . | . . . . . Melee Attacks . | . . . . . Impact . | . . . . . Slashing . | . . . . . Piercing . | . . . . . Sneak Attacks . | . . . . . Combat Hostiles . | . . . . . Follow-up Attacks . | . . . . . Damage Inflicted 3053 | 21 623 1189 . 1220 Guns 864 | 15 619 99 . 131 Cannons 28 | . . . . 28 Explosions 2151 | . . 1090 . 1061 Melee . | . . . . . Ramming 10 | 6 4 . . . Kinetic 517 | . 472 . . 45 Thermal 372 | . 131 183 . 58 Explosive 2067 | . . 1006 . 1061 Electromagnetic 87 | 15 16 . . 56 Impact . | . . . . . Slashing . | . . . . . Piercing . | . . . . . Highest Corruption . | . . . . . Average Corruption . | . . . . . Corruption Purged . | . . . . . Corruption Blocked . | . . . . . Overload Shots . | . . . . . Overflow Damage 30 | . . 20 . 10 Projectiles 8 | . . . . 8 Explosions 22 | . . 20 . 2 Melee . | . . . . . Knockbacks 1 | . . . . 1 Impact . | . . . . . Kinetic 1 | . . . . 1 Secondary . | . . . . . Self-Inflicted Damage 18 | 2 2 . . 14 Shots 1 | . . . . 1 Rammed 2 | 1 1 . . . Targets Rammed 3 | 2 1 . . . Kicked 1 | 1 . . . . Crushed . | . . . . . Highest Temperature 136 | . 24 134 . 136 Average Temperature 33 | . 6 50 . 47 Received Heat Transfer 759 | 6 357 36 . 360 Siege Activations . | . . . . . Robots Corrupted . | . . . . . Combat Hostiles . | . . . . . Parts Fried . | . . . . . Impact Corruptions . | . . . . . Robots Melted . | . . . . . Combat Hostiles . | . . . . . Parts Melted 3 | . 1 . . 2 Heat Transferred 791 | . 334 309 . 148 Parts Sabotaged . | . . . . . Parts Stolen . | . . . . . Parts Stripped . | . . . . . Power Chain Reactions . | . . . . . Alert | -11 -10 -9 -9 -8 ------- Run | Yrd Mat Mat Min Mat Peak Influence 397 | 20 267 397 102 213 Initial 102 | . 13 . 102 39 Average 123 | 1 91 227 102 108 Maximum Alert Level 1 | . 1 1 . 1 Low Security (%) 82 | 100 94 47 100 90 Level 1 17 | . 5 52 . 9 Level 2 . | . . . . . Level 3 . | . . . . . Level 4 . | . . . . . Level 5 . | . . . . . High Security . | . . . . . Max Security . | . . . . . Squads Dispatched 11 | . 5 2 . 4 Investigation 5 | . 4 . . 1 Extermination . | . . . . . Reinforcement 6 | . 1 2 . 3 Assault . | . . . . . Garrison . | . . . . . Intercept . | . . . . . Searches Triggered . | . . . . . Construction Impeded 1 | . . . . 1 Haulers Reinforced . | . . . . . Active Scanning Responses . | . . . . . Cargo Convoy Interrupts . | . . . . . Stealth | -11 -10 -9 -9 -8 --------- Run | Yrd Mat Mat Min Mat Distress Signals 6 | . 3 . . 3 Communications Jammed . | . . . . . Distress Signals . | . . . . . Times Spotted 53 | 1 22 14 . 16 Peak Tracking Total 9 | 1 7 3 . 9 Tactical Retreats 2 | . . . . 2 Traps | -11 -10 -9 -9 -8 ------- Run | Yrd Mat Mat Min Mat Traps Triggered 2 | . 1 . . 1 Indirectly . | . . . . . Trap Hack Attempts . | . . . . . Triggered . | . . . . . Disarmed . | . . . . . Reprogrammed . | . . . . . Reused . | . . . . . Traps Extracted . | . . . . . Installed . | . . . . . Triggered . | . . . . . Machines | -11 -10 -9 -9 -8 ---------- Run | Yrd Mat Mat Min Mat Machines Disabled 7 | . . 5 . 2 Max in Single Turn 2 | . . 2 . 2 Machines Repaired . | . . . . . Machines Dismantled . | . . . . . Machines Sabotaged . | . . . . . Overloaded Fab Kills . | . . . . . Hacking | -11 -10 -9 -9 -8 --------- Run | Yrd Mat Mat Min Mat Machines Accessed 7 | . 5 2 . . Terminals 4 | . 3 1 . . Fabricators . | . . . . . Repair Stations . | . . . . . Recycling Units 3 | . 2 1 . . Scanalyzers . | . . . . . Garrison Access . | . . . . . Total Hacks 19 | . 13 6 . . Successful 13 | . 9 4 . . Failed 6 | . 4 2 . . Catastrophic 2 | . 1 1 . . Database Lockouts . | . . . . . Manual . | . . . . . Terminals 7 | . 5 2 . . Fabricators . | . . . . . Repair Stations . | . . . . . Recycling Units 12 | . 8 4 . . Scanalyzers . | . . . . . Garrison Access . | . . . . . Terminal Hacks 2 | . 2 . . . Recycling Unit Index 1 | . 1 . . . Locate Traps 1 | . 1 . . . Fabricator Hacks . | . . . . . Repair Station Hacks . | . . . . . Recycling Unit Hacks 11 | . 7 4 . . Recycle Component 4 | . 4 . . . Process 4 | . 3 1 . . Report Inventory 1 | . . 1 . . Retrieve Matter 2 | . . 2 . . Scanalyzer . | . . . . . Garrison Access Hacks . | . . . . . Unauthorized Hacks . | . . . . . Terminals . | . . . . . Fabricators . | . . . . . Repair Stations . | . . . . . Recycling Units . | . . . . . Scanalyzers . | . . . . . Garrison Access . | . . . . . Data Cores Recovered . | . . . . . Used . | . . . . . Hacking Detections 4 | . 3 1 . . Full Trace Events 4 | . 3 1 . . Feedback Events . | . . . . . Feedback Blocked . | . . . . . Robot Schematics Acquired . | . . . . . Robots Built . | . . . . . Authchips . | . . . . . Time . | . . . . . Total Robot Build Rating . | . . . . . Part Schematics Acquired . | . . . . . Parts Built . | . . . . . Authchips . | . . . . . Time . | . . . . . Total Part Build Rating . | . . . . . Parts Repaired . | . . . . . Time . | . . . . . Parts Recycled 4 | . 4 . . . Recycled Matter 371 | . 290 81 . . Retrieved Matter 92 | . . 92 . . Retrieved Components . | . . . . . Parts Scanalyzed . | . . . . . Part Schematics Acquired . | . . . . . Parts Damaged . | . . . . . Bothacking | -11 -10 -9 -9 -8 ------------ Run | Yrd Mat Mat Min Mat Used RIF Installer . | . . . . . Robots Hacked . | . . . . . Non-combat . | . . . . . Combat . | . . . . . Robot Hacks Applied . | . . . . . Relay Couplers Released . | . . . . . Fabnet Peak Effective % . | . . . . . Robots Rewired . | . . . . . Allies Hacked . | . . . . . Hacks Repelled . | . . . . . Allies | -11 -10 -9 -9 -8 -------- Run | Yrd Mat Mat Min Mat Total Allies . | . . . . . Largest Group . | . . . . . Highest-Rated Group . | . . . . . Highest-Rated Ally . | . . . . . Total Orders . | . . . . . Ally Attacks . | . . . . . Total Damage . | . . . . . Kills . | . . . . . Allies Corrupted . | . . . . . Allies Melted . | . . . . . Intel | -11 -10 -9 -9 -8 ------- Run | Yrd Mat Mat Min Mat Robot Analysis Total . | . . . . . Derelict Logs Recovered . | . . . . . Drone Launches . | . . . . . Drone Recoveries . | . . . . . Exploration | -11 -10 -9 -9 -8 ------------- Run | Yrd Mat Mat Min Mat Turns Passed 2342 | 148 849 548 128 669 Spaces Moved 1167 | 138 552 265 50 162 Core 367 | 103 194 . . 70 Treads . | . . . . . Legs 729 | 35 358 265 50 21 Wheels . | . . . . . Hover . | . . . . . Flight 71 | . . . . 71 Fastest Speed 50 | 50 50 120 260 100 Average Speed 172 | 78 122 178 260 381 Slowest Speed 755 | 120 150 260 260 755 Overloaded Moves . | . . . . . Propulsion Burnouts . | . . . . . Robots Hopped . | . . . . . Cave-ins Triggered . | . . . . . Exploration Rate (%) 20 | 5 41 28 18 11 Regions Visited 4 Branch Regions 1 Pre-discovered Areas . | . . . . . Known Exits Taken . | . . . . . Unknown Exits Taken 4 | 1 1 1 1 . Scrap Searched . | . . . . . Spaces Dug . | . . . . . Terrain Destroyed 220 | . . 121 . 99 Melee . | . . . . . Projectile . | . . . . . AOE 220 | . . 121 . 99 Terrain Rammed . | . . . . . Walls Destroyed . | . . . . . Machines Disabled . | . . . . . Actions | -11 -10 -9 -9 -8 --------- Run | Yrd Mat Mat Min Mat Total 1373 | 175 653 305 49 191 Wait 92 | 26 44 17 . 5 Move 1163 | 137 551 264 49 162 Hop . | . . . . . Pick Up 15 | 5 6 3 . 1 Fast Attach 14 | 1 6 2 . 5 Attach 7 | 3 1 2 . 1 Detach 1 | . . . . 1 Swap 8 | . 5 3 . . Drop 5 | . 3 . . 2 Fire 65 | 1 36 14 . 14 Melee . | . . . . . Ram 2 | 1 1 . . . Kick 1 | 1 . . . . Crush . | . . . . . Escape Stasis . | . . . . . Rewire . | . . . . . Trap . | . . . . . Miscellaneous . | . . . . . Route ------- -11/Scrapyard -10/Materials -9/Materials -9/Mines -8/Materials History --------- Turn | Location | Event 2 | -11/Scrapyard | Met Revision 17 130 | -11/Scrapyard | Discovered new exit (range 8) 149 | -11/Scrapyard | Entered Materials 316 | -10/Materials | Build established: Mutant 495 | -10/Materials | Discovered new exit (range 15) 557 | -10/Materials | Lost 5 parts (1p2n2w) 938 | -10/Materials | Core integrity fell below 50% 995 | -10/Materials | Core integrity fell below 20% 998 | -10/Materials | Entered another Materials area 998 | -9/Materials | Evolved 2 slots: Weapon x2 1320 | -9/Materials | Build established: Gunner 1456 | -9/Materials | Discovered new exit (range 7) 1546 | -9/Materials | Entered Mines 1637 | -9/Mines | Discovered new exit (range 15) 1674 | -9/Mines | Entered Materials 1674 | -8/Materials | Evolved 2 slots: Weapon x2 2167 | -8/Materials | Build established: Executioner 2267 | -8/Materials | Lost 8 parts (1p1n6w) 2273 | -8/Materials | Core integrity fell below 50% 2335 | -8/Materials | Core integrity fell below 20% 2343 | -8/Materials | Destroyed by G-47 Trooper with Particle Gun Last Messages --------------- U-05 Engineer lays Concrete. Hpw. Shotgun destroyed. K-01 Serf collects debris. U-05 Engineer builds a Wall. K-01 Serf collects debris. Penetrated by Slug. U-05 Engineer lays Concrete. K-01 Serf collects debris. U-05 Engineer lays Concrete. Hcp. Matter Pod destroyed. U-05 Engineer lays Concrete. Acquired Prototype Energy Gun. Identified Imp. EM Shotgun. [Achievement: Risk Taker] Door malfunctions. Imp. EM Shotgun destroyed. Critical hit (Burn: +37). Slug penetrates Electrolysis Chamber. Critical hit (Burn: +37). [Achievement: First Step to Greatness] Map ----- +----------------------------------------------------+ | | | | | | | | | | | | | | | | | ?????????????????????????????????????????????????? | | ?????????????????????????????????????????????????? | | ?????????????????????????????????????????????????? | | ?????????????????????????????########????????????? | | ?????????????????????????????# #????????????? | | ?????????????????????????????# #????????????? | | ?????????????????????????????# """ #????????????? | | ?????????????????????????????# """ #????????????? | | ?????????????????????????????# """ #????????????? | | ?????????????????????????????? ??????????????? | | ????????????????????????##+#####+##### ###???????? | | ????????????????? ?? | | ????????????????????????######## ########??????? | | ????????????????????????######## # *#??????? | | ???????????????????#????# g # # """ #??????? | | ???????????????????# ???# h # # """ #??????? | | ???????????????????# ???# "" g/ / """ #??????? | | ???????????????????# ??#@""" # # #??????? | | ???????????????????# ?# g g# # ]#??????? | | ???????????????????# ## g # ########??????? | | ??????????????????????# ######## ##????????????? | | ??????????????????????# # # ##????????????? | | ??????????????????????# # # ##????????????? | | ??????????????????????### + ##????????????? | | ??????????????????????# # # ##????????????? | | ??????????????????????### # ##????????????? | | ???????????????????????## # #?????????????? | | ???????????????????????######### ##????????????? | | ?????????????????????????### # ##????????????? | | ???????????????????????????##### ##????????????? | | ??????????????? ????????????## ##????????????? | | ??????????????# ?????????????# #?????????????? | | ??????????????# ?????????????# #?????????????? | | ??????????????/ +????????????# #?????????????? | | ??????????????# #????????????# #?????????????? | | ??????????????# #????????????# #?????????????? | | ??????????????# #????????????# #?????????????? | | ??????????????# #????????????# #?????????????? | | ??????????????# #????????????# #?????????????? | | ??????????????# #????????????# #?????????????? | | ??????????????# #????????????# #?????????????? | | ??????????????# ########?????# ########??????? | +----------------------------------------------------+ Best States ------------- Heat Dissipation 35 Energy Generation 14 Energy Capacity 240 Matter Stores 468 Matter Capacity 700 Sight Range 16 Terrain Scan Density 10 Base Temperature (-) 100 Evasion (%) 55 Item Schematics ----------------- None Robot Schematics ------------------ None Fabricated ------------ Nothing Alien Tech Used ----------------- None Achievements -------------- First Step to Greatness Loot Pinata One Hack Too Far Remodeling Risk Taker Storm Trooper Uninvited Guest Challenges ------------ None Game ------ Seed GravitonAlertBoregun Manual? 0 Play Time 00:46:38 Cumulative 1.5 hours Start 2024.03.14 @ 20:30:03 End 2024.03.14 @ 21:21:04 Sessions 1 Manual Loads 0 Difficulty Rogue Special Mode None Game No. 1 Rogue 1 Adventurer 0 Explorer 0 Win Type - Total 0 Types 0/0/0/0/0/0/0/0/0 Lore% 0 Gallery% 1 Achievement% 2 Wizard Run 0 Options --------- Layout 1 ASCII 0 Keyboard 1 Movement Numpad Keybinds 0 Fullscreen 1 Font 32/Tamsyn Map View 50x35 Zoom Use 0% Tactical HUD 0 Map Filters NONE Filters NONE Steam 1 RUN: bc4ef1fb-2f72-4275-9f64-259fa38b091b